bitfinex-derivatives/quotes_ETHF0:USTF0_20241231
["timestamp","ask_amount","ask_price","bid_price","bid_amount"]
[1735614385271,0.30027,3336.4,3336.3,3.2078]
[1735614385460,2.57005568,3336.4,3336.3,3.2078]
[1735614389173,2.26978568,3336.4,3336.3,3.2078]
[1735614389871,2.71688568,3336.4,3335.9,3.2078]
[1735614390075,2.26978568,3336.0,3335.9,3.2078]
[1735614390272,2.57009568,3336.0,3335.9,3.2078]
[1735614391278,2.26978568,3336.0,3335.9,3.2078]
[1735614391770,2.57009568,3336.0,3335.9,3.2078]
[1735614391973,2.26978568,3336.0,3335.9,3.2078]
[1735614392371,2.26978568,3336.3,3335.9,3.2078]
[1735614392572,0.30029,3336.3,3336.1,0.3003]
[1735614392973,0.30029,3336.3,3336.2,40.8]
[1735614393182,0.4471,3336.4,3336.2,40.8]
[1735614393478,0.74738,3336.4,3336.2,40.8]
[1735614393678,0.30027,3336.5,3336.2,41.10029]
[1735614394278,2.26978568,3336.6,3336.0,0.854]
[1735614394477,3.2439852,3336.8,3336.4,0.30027]
[1735614394478,2.6455252,3336.8,3336.4,0.30027]
[1735614394675,2.26978568,3336.6,3336.1,0.4162]
[1735614394875,2.57004568,3336.6,3336.2,0.73999]
[1735614395479,2.57004568,3336.6,3336.2,41.53999]
[1735614395677,2.26978568,3336.6,3336.3,0.30028]
[1735614395978,2.26978568,3336.6,3336.2,41.2397]
[1735614395979,2.57004568,3336.6,3336.2,41.53999]
[1735614396687,0.30027,3336.5,3336.2,41.2397]
[1735614396980,0.30027,3336.5,3336.0,0.4266]
[1735614396981,0.30028,3336.4,3336.0,0.72691]
[1735614397177,0.30028,3336.4,3336.1,0.4405]
[1735614398378,0.30028,3336.4,3336.1,0.7408]
[1735614398885,7.82287088,3336.9,3336.1,0.4405]
[1735614399083,8.12310088,3336.9,3336.6,0.30025]
[1735614399386,2.3452852,3336.8,3336.7,0.8658]
[1735614400387,2.3452852,3336.8,3336.7,4.37385]
[1735614400582,2.3452852,3337.0,3336.7,4.0736]
[1735614400778,2.3452852,3337.0,3336.9,0.30023]
[1735614401887,0.30019,3337.3,3336.9,0.30023]
[1735614402085,0.30019,3337.3,3337.0,0.30022]
[1735614404684,0.30019,3337.4,3336.7,4.0736]
[1735614404889,2.3452852,3337.4,3336.7,4.0736]
[1735614405084,0.30019,3337.3,3337.0,0.30022]
[1735614405884,2.6454752,3337.4,3337.0,0.30022]
[1735614406892,2.3452852,3337.4,3336.7,4.0736]
[1735614407092,2.3452852,3337.4,3337.3,0.30019]
[1735614407285,2.3452852,3337.5,3337.4,0.30018]
[1735614408386,2.3452852,3337.5,3337.3,1.60198]
[1735614408687,0.30016,3337.7,3337.4,0.30018]
[1735614409090,2.3452852,3337.8,3337.3,1.3018]
[1735614409288,2.6454352,3337.8,3337.5,0.30017]
[1735614409484,0.30016,3337.7,3337.4,0.30018]
[1735614410286,2.6454352,3337.8,3337.5,0.30017]
[1735614410591,2.6454352,3337.8,3337.4,0.30018]
[1735614410592,0.30016,3337.7,3337.4,0.30018]
[1735614411385,2.3452852,3337.8,3337.4,0.30018]
[1735614411386,2.6454352,3337.8,3337.4,0.30018]
[1735614411986,2.3452852,3337.8,3337.3,1.3018]
[1735614412190,0.30017,3337.6,3337.3,1.3018]
[1735614412395,0.30017,3337.6,3337.3,1.60199]
[1735614412988,2.26978568,3337.5,3337.3,1.60199]
[1735614413192,0.30018,3337.4,3337.3,0.8671]
[1735614414989,2.3452852,3337.7,3337.3,0.8671]
[1735614415184,2.3452852,3337.6,3337.3,0.8671]
[1735614415384,2.3452852,3337.6,3337.5,0.30017]
[1735614416395,8.12302088,3337.8,3337.5,0.30017]
[1735614416895,5.8532352,3337.8,3337.6,0.30016]
[1735614417191,0.30016,3337.7,3337.3,1.2886]
[1735614417391,0.30016,3337.7,3337.4,0.30018]
[1735614419090,0.30016,3337.7,3337.5,40.8]
[1735614419694,2.3452852,3337.8,3337.5,40.8]
[1735614419892,2.6454352,3337.8,3337.5,41.10017]
[1735614420095,0.30015,3337.8,3337.5,41.10017]
[1735614420299,0.30015,3337.8,3337.5,0.30017]
[1735614421400,2.3452852,3337.6,3337.5,0.30017]
[1735614422398,2.3452852,3337.6,3337.3,0.8671]
[1735614422599,2.3452852,3337.7,3337.5,0.30017]
[1735614422793,0.30018,3337.5,3337.3,0.8671]
[1735614423194,0.30018,3337.5,3337.3,1.16729]
[1735614423400,0.71527,3337.6,3337.4,0.30018]
[1735614423806,0.30017,3337.5,3337.3,1.16729]
[1735614424008,0.4151,3337.6,3337.3,1.16729]
[1735614424303,0.71527,3337.6,3337.3,1.16729]
[1735614424503,2.7632852,3337.7,3337.3,0.8671]
[1735614424504,2.6454452,3337.7,3337.3,0.8671]
[1735614424703,2.3452852,3337.7,3337.3,0.8671]
[1735614424903,2.3452852,3337.7,3337.6,0.30017]
[1735614425902,2.3452852,3337.8,3337.7,0.30016]
[1735614426901,2.3452852,3337.9,3337.5,3.2078]
[1735614427208,2.3452852,3337.9,3337.8,0.30015]
[1735614428708,0.30012,3338.1,3337.9,0.30013]
[1735614429309,2.6454052,3338.2,3338.0,0.4222]
[1735614430113,0.30012,3338.2,3338.0,0.4222]
[1735614430414,0.30012,3338.2,3338.0,0.72233]
[1735614430620,6.34398568,3338.4,3338.1,0.74972]
[1735614430621,0.30011,3338.3,3338.1,0.74972]
[1735614430818,0.3001,3338.3,3338.1,0.4496]
[1735614431815,6.22218568,3338.4,3338.1,0.4496]
[1735614432013,6.22218568,3338.4,3338.1,0.74972]
[1735614432416,2.3452852,3338.6,3338.1,0.4496]
[1735614432614,2.6453552,3338.7,3338.4,0.30009]
[1735614432819,2.3452852,3338.7,3338.5,0.4261]
[1735614433019,2.3452852,3338.7,3338.5,0.72618]
[1735614433719,2.3452852,3338.7,3338.5,0.4261]
[1735614434318,0.75637,3338.8,3338.5,0.4261]
[1735614434518,0.4563,3338.8,3338.5,0.4261]
[1735614434719,0.30008,3338.6,3338.5,0.4261]
[1735614434918,0.30007,3338.7,3338.5,0.4261]
[1735614436823,3.51792781,3338.7,3338.5,0.4261]
[1735614437121,0.30008,3338.6,3338.5,0.4261]
[1735614437420,0.3001,3338.3,3338.1,0.4496]
[1735614437624,0.30011,3338.2,3338.1,0.4496]
[1735614438625,0.30015,3337.9,3337.5,0.30017]
[1735614438920,0.30015,3337.8,3337.6,0.4569]
[1735614439222,2.26978568,3337.8,3337.3,3.2078]
[1735614439424,0.30018,3337.4,3337.3,3.2078]
[1735614442030,0.71608,3337.4,3337.3,3.2078]
[1735614442518,0.30021,3337.1,3337.0,0.4524]
[1735614442919,0.30021,3337.2,3336.9,0.30022]
[1735614443124,0.30021,3337.2,3336.9,0.73372]
[1735614444920,2.35242215,3337.3,3336.9,0.4335]
[1735614445125,2.65262215,3337.3,3336.9,0.73372]
[1735614445327,2.35242215,3337.3,3336.9,0.73372]
[1735614445627,2.65262215,3337.2,3336.9,0.73372]
[1735614445830,0.30022,3337.1,3336.9,0.4335]
[1735614446927,2.35242215,3337.2,3336.9,0.4335]
[1735614447130,0.30022,3337.0,3336.9,0.4335]
[1735614455733,0.4575,3337.1,3336.9,0.4335]
[1735614455926,2.35242215,3337.2,3336.9,0.4335]
[1735614456131,2.65262215,3337.2,3337.0,0.30022]
[1735614456926,0.3002,3337.2,3337.0,0.30022]
[1735614457126,2.65262215,3337.3,3337.0,0.30022]
[1735614457534,0.3002,3337.2,3337.0,0.30022]
[1735614457835,2.65262215,3337.3,3337.1,0.30021]
[1735614458131,0.3002,3337.3,3337.1,0.30021]
[1735614458331,0.30023,3336.9,3336.8,0.4438]
[1735614458532,2.57001568,3336.9,3336.8,0.4438]
[1735614461441,0.30025,3336.7,3336.6,0.4459]
[1735614463843,2.26978568,3336.9,3336.6,0.4459]
[1735614464040,0.30024,3336.8,3336.6,0.4459]
[1735614464643,0.30025,3336.7,3336.6,0.4459]
[1735614465641,2.26978568,3336.9,3336.5,0.4461]
[1735614465947,0.30027,3336.4,3336.3,0.4399]
[1735614467843,5.47758568,3336.6,3336.0,0.4163]
[1735614468044,0.3003,3336.1,3336.0,0.4163]
[1735614468648,0.30029,3336.2,3336.0,0.4163]
[1735614469245,0.30029,3336.2,3336.0,0.71661]
[1735614469451,0.30029,3336.3,3336.0,0.71661]
[1735614469641,2.26978568,3336.5,3336.0,0.4163]
[1735614469841,0.30026,3336.5,3336.1,0.3003]
[1735614470346,5.56022215,3336.6,3336.0,0.4163]
[1735614470656,0.30028,3336.4,3336.0,0.71661]
[1735614472450,0.30028,3336.4,3336.1,0.3003]
[1735614473549,0.30026,3336.5,3336.0,0.4163]
[1735614473852,0.30029,3336.3,3336.0,0.4163]
[1735614474153,0.30029,3336.3,3336.1,40.8]
[1735614475246,0.30029,3336.3,3336.0,0.7166]
[1735614475753,0.30028,3336.4,3336.0,41.5166]
[1735614476658,0.30027,3336.5,3336.2,0.30029]
[1735614477354,0.30025,3336.7,3336.4,0.30027]
[1735614477555,2.65266215,3336.8,3336.5,0.4509]
[1735614477755,0.30025,3336.7,3336.6,0.4389]
[1735614483155,2.65267215,3336.7,3336.6,0.4389]
[1735614484452,0.30025,3336.7,3336.6,0.4389]
[1735614485259,9.0062189,3336.8,3336.0,3.2078]
[1735614485452,0.30028,3336.3,3336.2,0.454]
[1735614486057,4.69057041,3336.8,3336.7,0.30025]
[1735614487055,2.35015823,3336.9,3336.7,0.30025]
[1735614487255,2.35015823,3336.9,3336.8,0.4419]
[1735614487455,2.35015823,3336.9,3336.8,0.8959]
[1735614488656,0.30023,3336.9,3336.8,0.8959]
[1735614488859,2.65037823,3337.0,3336.8,0.8959]
[1735614489751,2.35015823,3337.0,3336.8,0.8959]
[1735614489951,2.65037823,3337.0,3336.8,1.19613]
[1735614490858,2.65037823,3337.0,3336.8,0.8959]
[1735614491564,2.35015823,3337.0,3336.8,1.19613]
[1735614491959,2.65037823,3337.0,3336.8,1.19613]
[1735614492259,2.35015823,3337.0,3336.8,1.19613]
[1735614492664,2.65037823,3337.0,3336.8,1.19613]
[1735614493562,2.65037823,3337.0,3336.8,0.8959]
[1735614494762,2.65037823,3337.0,3336.8,1.19614]
[1735614496859,2.35015823,3336.9,3336.8,1.19614]
[1735614497467,2.65038823,3336.9,3336.8,0.454]
[1735614497762,3.06608823,3336.9,3336.8,0.454]
[1735614497952,0.30026,3336.6,3336.5,0.4482]
[1735614498560,0.30026,3336.6,3336.4,8.32560091]
[1735614498561,5.47758568,3336.8,3336.4,5.11780091]
[1735614498867,0.30026,3336.5,3336.4,5.11780091]
[1735614499063,0.30026,3336.5,3336.4,4.70210091]
[1735614499471,3.52523735,3336.5,3336.1,0.8639]
[1735614499766,0.30028,3336.3,3336.1,0.8639]
[1735614499964,0.30029,3336.2,3336.1,0.8639]
[1735614500865,2.3497927,3336.3,3336.1,0.8639]
[1735614501068,2.6500827,3336.3,3336.1,0.8639]
[1735614501459,0.30029,3336.2,3336.1,0.8639]
[1735614501960,2.3497927,3336.3,3336.1,1.1642]
[1735614502158,2.3497927,3336.3,3336.2,0.30029]
[1735614502769,2.3497927,3336.3,3336.2,41.10029]
[1735614503669,2.3497927,3336.5,3336.3,0.30027]
[1735614503964,2.3497927,3336.5,3336.4,0.30027]
[1735614504165,2.3497927,3336.5,3336.4,3.50807]
[1735614504366,3.52523735,3336.6,3336.4,3.2078]
[1735614504367,0.9671927,3336.6,3336.4,3.2078]
[1735614504571,0.9671927,3336.6,3336.5,0.74226]
[1735614505668,3.82545735,3337.1,3336.8,0.30024]
[1735614506670,0.30022,3337.0,3336.8,0.30024]
[1735614508572,3.82545735,3337.1,3336.8,0.30024]
[1735614509071,3.82545735,3337.1,3336.8,3.2078]
[1735614509072,3.52523735,3337.1,3336.8,3.2078]
[1735614509269,3.52523735,3337.2,3336.9,2.26978568]
[1735614509467,3.52523735,3337.2,3337.1,0.30021]
[1735614510777,3.82540735,3337.6,3337.3,0.30019]
[1735614510979,3.82540735,3337.6,3337.4,0.4148]
[1735614511776,3.2078,3337.7,3337.4,0.4148]
[1735614511777,6.73303735,3337.7,3337.4,0.4148]
[1735614512077,7.03319735,3337.7,3337.4,0.71498]
[1735614513375,7.03319735,3337.7,3337.4,0.4148]
[1735614514574,6.73303735,3337.7,3337.4,0.71498]
[1735614515076,6.73303735,3337.7,3337.5,0.4306]
[1735614515278,3.52523735,3337.7,3337.6,0.30017]
[1735614515473,3.52523735,3337.8,3337.5,0.855]
[1735614515678,3.52523735,3337.8,3337.7,0.30016]
[1735614515871,3.52523735,3337.8,3337.7,3.50796]
[1735614516779,3.52523735,3338.2,3337.7,3.2078]
[1735614516980,3.52523735,3338.2,3338.1,0.30012]
[1735614517176,3.52523735,3338.2,3338.1,41.10012]
[1735614517875,3.52523735,3338.2,3338.1,41.95512]
[1735614518072,3.2078,3338.5,3338.1,41.655]
[1735614518379,3.2078,3338.5,3338.4,0.30009]
[1735614518579,0.8477,3338.6,3338.1,44.8628]
[1735614518780,3.52523735,3338.8,3338.6,0.30007]
[1735614519875,3.50786,3338.9,3338.6,0.30007]
[1735614521078,3.2078,3338.9,3338.2,2.26978568]
[1735614521272,0.30011,3338.2,3338.1,3.2078]
[1735614521478,0.30013,3338.1,3337.8,5.01738598]
[1735614521680,0.72883,3338.1,3337.8,5.01738598]
[1735614522290,0.72883,3338.1,3337.8,0.30015]
[1735614522881,0.4287,3338.1,3337.6,1.2944]
[1735614523079,2.69848568,3338.1,3337.4,3.2078]
[1735614523485,0.30014,3337.9,3337.6,0.30016]
[1735614524685,0.30014,3338.0,3337.7,0.30015]
[1735614524885,0.30014,3337.9,3337.6,0.30016]
[1735614525274,0.30014,3337.9,3337.7,0.30016]
[1735614525777,0.4287,3338.1,3337.7,0.30016]
[1735614525979,0.4287,3338.1,3338.0,0.30013]
[1735614527174,0.4511,3338.3,3337.9,0.879]
[1735614527380,3.2078,3338.4,3338.3,0.3001]
[1735614527882,3.2078,3338.4,3338.3,41.1001]
[1735614528483,3.2078,3338.4,3338.3,0.3001]
[1735614529280,0.4286,3338.5,3338.3,0.3001]
[1735614530381,0.4286,3338.5,3338.4,0.30009]
[1735614530581,0.30006,3338.8,3338.0,40.8]
[1735614530582,3.2078,3338.9,3338.0,40.8]
[1735614530785,3.6609,3338.9,3338.6,0.30007]
[1735614530987,3.6609,3338.9,3338.7,0.30007]
[1735614531182,3.6609,3338.9,3338.0,40.8]
[1735614531388,3.6609,3338.9,3338.7,0.30006]
[1735614533591,3.6609,3338.9,3338.8,0.30006]
[1735614533990,0.4531,3338.9,3338.8,0.30006]
[1735614534892,0.4531,3338.9,3338.2,3.2078]
[1735614534893,0.4531,3338.9,3338.7,0.30006]
[1735614536294,0.4531,3338.9,3338.8,0.30006]
[1735614537496,0.4531,3338.9,3338.7,0.30006]
[1735614538884,0.4531,3338.9,3338.8,0.30006]
[1735614541192,3.2078,3339.3,3338.6,1.3278]
[1735614541497,0.30003,3339.2,3339.0,0.30003]
[1735614541990,3.2078,3339.3,3339.0,0.30003]
[1735614542392,3.50782,3339.3,3339.0,0.30003]
[1735614542590,3.2078,3339.3,3339.1,0.30002]
[1735614542792,3.2078,3339.3,3339.2,0.30002]
[1735614543786,0.3,3339.4,3339.2,0.30002]
[1735614544187,1.2877,3339.5,3339.3,0.30001]
[1735614544388,0.8353,3339.5,3338.8,5.47758568]
[1735614544700,0.8353,3339.5,3339.4,0.3]
[1735614546100,0.72387,3339.8,3338.9,0.75013]
[1735614546101,0.4239,3339.8,3339.2,5.47758568]
[1735614546297,0.432,3339.9,3339.8,0.29997]
[1735614546899,0.8838,3340.1,3340.0,0.29995]
[1735614547390,3.52523735,3340.2,3340.1,0.29994]
[1735614547606,3.52523735,3340.2,3339.6,3.2078]
[1735614547607,4.40903735,3340.5,3340.0,3.2078]
[1735614547896,4.40903735,3340.5,3340.3,0.29992]
[1735614548500,3.97823735,3340.5,3340.3,0.29992]
[1735614548699,3.97823735,3340.5,3340.1,1.3356]
[1735614549006,3.52523735,3340.5,3340.4,0.29991]
[1735614549201,3.2078,3340.8,3340.1,8.60538568]
[1735614549497,3.2078,3340.8,3340.7,0.29989]
[1735614550897,3.2078,3341.3,3340.6,3.2078]
[1735614551104,0.29981,3341.6,3341.0,3.2078]
[1735614551405,0.29982,3341.5,3341.2,0.29984]
[1735614551607,3.6232,3341.7,3341.3,0.29983]
[1735614551903,3.923,3341.7,3341.3,0.29983]
[1735614552293,0.29985,3341.2,3341.0,3.2078]
[1735614552497,0.29985,3341.1,3341.0,3.2078]
[1735614553403,3.2078,3341.2,3340.5,3.2078]
[1735614553600,0.29988,3340.9,3340.5,3.2078]
[1735614553902,0.29988,3340.8,3340.5,3.2078]
[1735614554294,0.4398,3340.9,3340.5,3.2078]
[1735614554505,2.26978568,3340.7,3340.1,3.2078]
[1735614554702,2.26978568,3340.7,3339.8,1.198]
[1735614554899,0.29993,3340.2,3339.8,1.49796]
[1735614555300,2.26978568,3340.7,3339.9,0.29995]
[1735614555301,0.2999,3340.6,3339.9,0.29995]
[1735614555503,0.29993,3340.3,3339.9,0.29996]
[1735614555900,0.4377,3340.5,3339.7,3.6474]
[1735614556105,0.29994,3340.2,3339.8,0.29996]
[1735614557110,0.29993,3340.3,3339.7,3.6474]
[1735614557502,0.4377,3340.5,3339.7,3.6474]
[1735614558307,3.2078,3340.8,3339.8,2.26978568]
[1735614558605,3.2078,3340.8,3340.1,3.2078]
[1735614558807,3.2078,3340.8,3340.5,0.2999]
[1735614559004,0.4534,3341.1,3340.9,0.29986]
[1735614559407,0.75325,3341.1,3340.7,0.29988]
[1735614559708,0.75325,3341.1,3340.8,0.29988]
[1735614560106,0.29986,3341.0,3340.7,0.29989]
[1735614560304,0.29989,3340.7,3340.5,3.2078]
[1735614560507,0.29987,3340.9,3340.5,3.5077]
[1735614561008,0.4534,3341.1,3340.7,0.29988]
[1735614561009,0.75326,3341.1,3340.7,0.29988]
[1735614562112,0.29987,3341.0,3340.6,41.52579]
[1735614562302,3.2078,3340.9,3340.1,3.6337]
[1735614562501,2.26978568,3341.0,3339.8,0.29996]
[1735614562502,0.29993,3340.2,3339.8,0.29996]
[1735614562811,0.29996,3339.9,3339.7,3.2078]
[1735614563506,0.4548,3340.1,3339.7,3.2078]
[1735614563812,0.4548,3340.1,3339.9,0.29995]
[1735614564111,2.26978568,3340.7,3339.7,3.2078]
[1735614564504,0.29991,3340.4,3340.1,0.29994]
[1735614565512,0.29991,3340.4,3339.7,3.2078]
[1735614565513,0.29993,3340.3,3339.9,0.29995]
[1735614565908,0.29993,3340.3,3339.7,3.2078]
[1735614566115,3.2078,3340.5,3339.7,3.2078]
[1735614566408,0.29992,3340.3,3340.0,0.29994]
[1735614567006,3.2078,3340.5,3340.1,0.29994]
[1735614567206,0.29992,3340.4,3340.1,0.29994]
[1735614567513,3.50771,3340.5,3340.1,0.29994]
[1735614567815,0.29991,3340.5,3340.1,0.29994]
[1735614568111,3.50771,3340.5,3340.1,0.29994]
[1735614568910,3.2078,3340.5,3339.7,3.2078]
[1735614569213,0.29993,3340.2,3339.9,0.29996]
[1735614569612,0.4253,3340.1,3339.9,0.29996]
[1735614570509,0.4253,3340.1,3339.8,0.29997]
[1735614570814,0.4253,3340.1,3339.7,3.2078]
[1735614571013,0.4253,3340.1,3340.0,0.29995]
[1735614572418,0.29992,3340.4,3340.1,0.29994]
[1735614572625,0.29992,3340.3,3340.0,0.29995]
[1735614574213,3.50771,3340.5,3340.2,0.29993]
[1735614575618,3.2078,3340.5,3339.7,3.627]
[1735614575820,0.29992,3340.4,3340.1,0.29994]
[1735614576314,3.2078,3340.5,3339.7,3.627]
[1735614576615,0.29997,3339.9,3339.7,3.2078]
[1735614576824,3.2078,3340.1,3339.7,3.2078]
[1735614577125,0.72047,3339.8,3339.7,3.2078]
[1735614577615,2.69028568,3339.8,3339.0,0.4306]
[1735614577920,0.30002,3339.3,3339.0,0.73064]
[1735614578122,3.2078,3339.6,3339.0,0.4306]
[1735614578318,0.30002,3339.2,3338.9,0.30004]
[1735614578510,2.26978568,3339.5,3338.8,3.2078]
[1735614578817,0.30004,3339.1,3338.8,3.50785]
[1735614579017,2.71798568,3339.5,3338.9,0.30004]
[1735614579217,0.30002,3339.3,3338.9,0.30004]
[1735614579618,0.30002,3339.3,3339.0,0.30004]
[1735614580220,0.30001,3339.4,3339.0,0.30003]
[1735614580523,0.3,3339.5,3339.1,0.30002]
[1735614581517,3.2078,3339.6,3338.8,3.2078]
[1735614581722,3.50779,3339.6,3339.2,0.30002]
[1735614582022,0.3,3339.5,3339.2,0.30002]
[1735614582222,3.2078,3339.6,3338.8,3.2078]
[1735614582521,0.30002,3339.2,3338.8,3.2078]
[1735614582717,0.30005,3338.9,3338.8,3.2078]
[1735614585625,0.30004,3339.0,3338.4,44.0078]
[1735614585828,0.8497,3339.1,3338.4,44.0078]
[1735614586020,0.30008,3338.5,3338.4,44.0078]
[1735614586425,0.30008,3338.5,3338.4,40.8]
[1735614588129,3.2078,3338.8,3338.1,0.4427]
[1735614588425,0.30011,3338.2,3338.1,0.4427]
[1735614588631,0.30011,3338.2,3338.1,41.2427]
[1735614588931,0.4359,3338.4,3338.1,41.2427]
[1735614589227,0.3001,3338.3,3338.1,0.4427]
[1735614589428,0.4359,3338.4,3338.1,0.4427]
[1735614589631,0.30011,3338.3,3338.1,0.4427]
[1735614591519,0.4359,3338.4,3338.1,0.4427]
[1735614591725,0.30013,3338.0,3337.9,40.8]
[1735614591928,0.30013,3338.0,3337.8,0.4295]
[1735614592431,2.26978568,3338.3,3337.7,3.2078]
[1735614592625,0.30015,3337.8,3337.7,3.2078]
[1735614592828,0.30014,3337.9,3337.7,3.2078]
[1735614593326,0.4211,3338.2,3337.7,3.2078]
[1735614593630,0.30015,3337.8,3337.7,3.2078]
[1735614595125,2.26978568,3338.0,3337.2,0.7459]
[1735614595126,0.30018,3337.5,3337.2,0.7459]
[1735614595336,0.30019,3337.4,3337.2,0.4457]
[1735614596327,0.30019,3337.3,3337.2,0.4457]
[1735614597939,0.30019,3337.3,3337.2,41.2457]
[1735614598245,2.69478568,3337.7,3337.1,3.2078]
[1735614598445,0.3002,3337.3,3337.1,3.2078]
[1735614598646,0.3002,3337.3,3337.2,40.8]
[1735614600243,3.2078,3337.6,3337.4,0.30018]
[1735614600549,3.2078,3337.6,3337.2,40.8]
[1735614600550,3.2078,3337.6,3337.5,0.30017]
[1735614601348,0.30014,3337.9,3337.6,0.30016]
[1735614601649,0.30014,3337.9,3337.7,0.449]
[1735614602846,0.30015,3337.8,3337.7,0.449]
[1735614603042,2.26978568,3338.0,3337.3,0.4484]
[1735614603347,2.26978568,3338.0,3337.3,0.8891]
[1735614603548,0.30016,3337.7,3337.4,0.30018]
[1735614603951,0.30017,3337.6,3337.3,1.18929]
[1735614604148,2.26978568,3337.7,3337.2,3.2078]
[1735614604338,0.30019,3337.3,3337.2,3.2078]
[1735614604645,0.8528,3337.5,3337.2,3.2078]
[1735614604849,0.30017,3337.6,3337.3,0.30019]
[1735614605047,3.12258568,3338.0,3337.5,0.30017]
[1735614605247,3.12258568,3338.0,3337.2,3.2078]
[1735614605542,0.30016,3337.7,3337.4,0.30018]
[1735614606244,0.30017,3337.6,3337.3,0.30019]
[1735614606951,3.12258568,3338.0,3337.2,3.2078]
[1735614607143,0.30015,3337.8,3337.5,0.30017]
[1735614607638,0.30015,3337.8,3337.2,3.2078]
[1735614607639,0.30014,3337.9,3337.6,0.30017]
[1735614607842,0.8528,3338.0,3337.7,0.4458]
[1735614608047,3.2078,3338.5,3337.7,3.17108568]
[1735614608243,3.2078,3338.5,3337.8,0.4536]
[1735614608846,3.2078,3338.5,3338.0,0.30013]
[1735614608847,0.30009,3338.4,3338.0,0.30013]
[1735614609249,0.30011,3338.3,3338.0,0.30013]
[1735614609847,0.30011,3338.3,3338.1,40.8]
[1735614610850,3.2078,3338.5,3338.1,40.8]
[1735614611048,0.30011,3338.3,3338.1,40.8]
[1735614611353,0.30011,3338.3,3338.0,0.30013]
[1735614613152,2.26978568,3338.3,3337.7,0.9013]
[1735614613347,0.30017,3337.6,3337.3,0.30019]
[1735614613549,0.30018,3337.4,3337.2,0.8631]
[1735614613744,0.30018,3337.5,3337.2,1.1633]
[1735614614255,0.30018,3337.5,3337.2,0.8631]
[1735614614553,3.2078,3337.9,3337.2,0.8631]
[1735614615158,0.30019,3337.3,3337.2,0.8631]
[1735614615554,0.30019,3337.3,3337.2,0.4405]
[1735614615755,0.4315,3337.6,3337.2,0.4405]
[1735614615756,0.30018,3337.5,3337.2,0.4405]
[1735614615954,0.30018,3337.5,3337.3,0.30019]
[1735614616253,0.30018,3337.5,3337.2,0.4405]
[1735614616449,0.30017,3337.5,3337.2,0.4405]
[1735614616653,0.30019,3337.4,3337.2,0.4405]
[1735614617046,0.4299,3337.5,3337.1,3.2078]
[1735614617247,0.30019,3337.4,3337.1,3.508]
[1735614617447,0.30019,3337.3,3337.1,3.2078]
[1735614618054,0.30019,3337.4,3337.1,3.50801]
[1735614618555,0.73008,3337.5,3337.2,0.3002]
[1735614618748,0.3002,3337.2,3337.1,3.2078]
[1735614618948,0.4299,3337.5,3337.1,3.2078]
[1735614619557,0.4299,3337.5,3337.0,0.4387]
[1735614619558,0.73008,3337.5,3337.2,0.3002]
[1735614620956,0.30019,3337.4,3337.1,0.30021]
[1735614621255,0.30019,3337.4,3336.6,3.2078]
[1735614621256,2.26978568,3337.4,3336.6,3.2078]
[1735614621553,0.30023,3336.9,3336.6,3.2078]
[1735614621754,0.30023,3336.9,3336.6,3.50805]
[1735614622155,5.47758568,3337.1,3336.6,3.2078]
[1735614622156,0.4552,3337.0,3336.6,3.2078]
[1735614622359,0.30025,3336.7,3336.6,3.2078]
[1735614623147,0.30023,3336.9,3336.6,3.50805]
[1735614623956,0.75542,3337.0,3336.6,3.50805]
[1735614624954,0.4552,3337.0,3336.6,3.50805]
[1735614625258,0.30023,3336.9,3336.6,3.50805]
[1735614625451,4.61123447,3337.4,3336.6,3.2078]
[1735614625755,4.61123447,3337.4,3336.9,0.30022]
[1735614625756,0.3002,3337.3,3336.9,0.30022]
[1735614626151,0.3002,3337.3,3337.0,41.2479]
[1735614626351,0.3002,3337.2,3337.0,41.2479]
[1735614626549,0.3002,3337.2,3337.0,0.4479]
[1735614627751,2.77134879,3337.5,3337.1,0.30021]
[1735614627961,2.34144879,3337.5,3337.3,0.30019]
[1735614628261,2.34144879,3337.5,3337.4,40.8]
[1735614628652,2.34144879,3337.5,3337.2,0.4542]
[1735614628854,2.34144879,3337.5,3337.4,0.30018]
[1735614629061,2.34144879,3337.5,3337.4,43.36996568]
[1735614629358,2.34144879,3337.8,3337.7,0.30016]
[1735614630557,2.34144879,3337.8,3337.4,44.0078]
[1735614630558,3.2078,3338.0,3337.4,44.0078]
[1735614630859,0.30012,3338.1,3337.8,0.30014]
[1735614631056,2.34144879,3338.2,3337.9,0.8679]
[1735614631561,0.30013,3338.1,3337.9,0.8679]
[1735614632158,0.30013,3338.0,3337.9,0.8679]
[1735614632355,2.34144879,3338.2,3337.9,0.8679]
[1735614632661,2.34144879,3338.1,3337.9,0.8679]
[1735614633361,2.64157879,3338.1,3337.9,0.8679]
[1735614633755,0.30013,3338.0,3337.9,0.8679]
[1735614633961,2.64157879,3338.0,3337.9,0.8679]
[1735614636767,2.34144879,3338.0,3337.9,1.16804]
[1735614637864,0.30013,3338.0,3337.9,0.8679]
[1735614638256,2.64157879,3338.1,3337.9,0.8679]
[1735614638461,0.30013,3338.0,3337.9,0.8679]
[1735614638863,2.64157879,3338.1,3337.9,0.8679]
[1735614639360,2.34144879,3338.0,3337.9,0.8679]
[1735614641164,2.64157879,3338.1,3337.9,0.8679]
[1735614643971,2.64157879,3338.1,3337.9,1.16804]
[1735614644171,2.64157879,3338.1,3337.9,0.8679]
[1735614644768,0.30013,3338.0,3337.9,0.8679]
[1735614646461,0.30017,3337.6,3337.4,3.50798]
[1735614646670,0.30017,3337.6,3337.4,3.6684]
[1735614647378,0.30017,3337.5,3337.4,3.6684]
[1735614647867,2.34144879,3337.9,3337.4,3.6684]
[1735614648468,0.30015,3337.8,3337.6,0.30016]